fUSD/lending_fUSD_20240528
["ID","MTS","AMOUNT","RATE_DAILY","PERIOD"]
[328128650,1716910263113,-1000.0,0.00031499,120]
[328128651,1716910263122,-200.0,0.00031499,120]
[328128652,1716910263132,-192854.33647276,0.000315,2]
[328128653,1716910263141,-16042.76454792,0.000315,5]
[328128654,1716910263258,-879.96203973,0.000315,5]
[328128655,1716910263271,-3369.65,0.000315,5]
[328128656,1716910263283,-688.56235155,0.000315,5]
[328128657,1716910263294,-3041.67908899,0.000315,5]
[328128658,1716910263306,-174334.22886524,0.000315,5]
[328128659,1716910263317,-31324.06127782,0.000315,5]
[328128660,1716910263329,-6072.28939998,0.000315,5]
[328128661,1716910263340,-1750.08934919,0.000315,5]
[328128662,1716910263352,-746.60009089,0.000315,5]
[328128663,1716910263363,-443.07349567,0.000315,5]
[328128664,1716910263374,-256.03418594,0.000315,5]
[328128665,1716910263385,-38400.0,0.000315,5]
[328128666,1716910263467,-155.0,0.00014199,2]
[328128667,1716910263477,-325.28545213,0.00015,2]
[328128668,1716910263487,-93.14468552,0.0001564,2]
[328128669,1716910263498,-230.22431448,0.0001564,2]
[328128670,1716910263507,-153.88,0.0002739,3]
[328128671,1716910263517,-385.48791957,0.00027397,2]
[328128672,1716910263529,-114.51208043,0.00027397,2]
[328128673,1716910263538,-2100.0,0.00027671,2]
[328128674,1716910263547,-307.76,0.0002876,3]
[328128675,1716910263556,-5724.1278931,0.000315,5]
[328128676,1716910263568,-426.68023054,0.000315,5]
[328128677,1716910263580,-2017.62724224,0.000315,5]
[328128678,1716910263592,-500.0,0.000315,5]
[328128679,1716910263603,-466.70474391,0.000315,5]
[328128680,1716910263614,-3508.1022,0.000315,5]
[328128681,1716910263625,-1471.2205633,0.000315,5]
[328128682,1716910263636,-4089.24,0.000315,5]
[328128683,1716910263648,-440.74979347,0.000315,5]
[328128684,1716910263659,-40964.10477451,0.000315,5]
[328128685,1716910263671,-31715.73820004,0.000315,5]
[328128686,1716910263683,-62013.51984336,0.000315,5]
[328128687,1716910263694,-263717.06058923,0.000315,5]
[328128688,1716910263705,-181007.81985352,0.000315,5]
[328128689,1716910263721,-3872.6,0.000315,5]
[328128690,1716910263998,150.0,9.293e-05,2]
[328128691,1716910264025,150.0,9.293e-05,2]
[328128692,1716910264049,155.85055761,9.293e-05,2]
[328128693,1716910264071,150.0,9.293e-05,2]
[328128694,1716910264093,150.0,9.293e-05,2]
[328128695,1716910264117,150.0,9.293e-05,2]
[328128696,1716910264140,150.0,9.293e-05,2]
[328128697,1716910264162,150.0,9.293e-05,2]
[328128698,1716910264185,150.0,9.293e-05,2]
[328128699,1716910264207,150.0,9.293e-05,2]
[328128700,1716910264232,150.0,9.293e-05,2]
[328128701,1716910264263,2709.1362448,9.293e-05,2]
[328128702,1716910285046,150.0,9.293e-05,2]
[328128703,1716910285070,150.0,9.293e-05,2]
[328128704,1716910285098,1456.00055761,9.293e-05,2]
[328128707,1716910305375,300.0,9.293e-05,2]
[328128716,1716911211124,150.0,8.828e-05,2]
[328128717,1716911211151,150.0,8.828e-05,2]
[328128718,1716911211178,150.0,8.828e-05,2]
[328128719,1716911211203,150.0,8.828e-05,2]
[328128720,1716911211225,150.0,8.828e-05,2]
[328128721,1716911211251,150.0,8.828e-05,2]
[328128722,1716911211274,56.17943807,8.828e-05,2]
[328128723,1716911231099,150.0,8.828e-05,2]
[328128724,1716911231121,150.0,8.828e-05,2]
[328128725,1716911231144,150.0,8.828e-05,2]
[328128726,1716911231166,150.0,8.828e-05,2]
[328128727,1716911231189,150.0,8.828e-05,2]
[328128728,1716911231212,150.0,8.828e-05,2]
[328128729,1716911231234,56.17943807,8.828e-05,2]
[328128730,1716911235405,300.0,0.000124,4]
[328128733,1716911237506,700.0,0.000125,4]
[328128735,1716911239637,1100.0,0.000126,4]
[328128736,1716911240918,150.0,9.293e-05,2]
[328128737,1716911240946,750.0,9.293e-05,2]
[328128738,1716911241718,1400.0,0.000127,4]
[328128739,1716911243823,1800.0,0.000128,4]
[328128740,1716911245931,300.0,0.000129,4]
[328128741,1716911248583,150.0,9.293e-05,2]
[328128742,1716911248605,139.33910277,9.293e-05,2]
[328128743,1716911252678,150.0,9.293e-05,2]
[328128744,1716911252704,8972.25635644,9.293e-05,2]
[328128745,1716911253655,-198.30202109,9.293e-05,2]
[328128746,1716911254892,-150.0,9.293e-05,2]
[328128747,1716911255566,-150.0,9.293e-05,2]
[328128748,1716911255973,-150.0,9.293e-05,2]
[328128749,1716911256685,-150.0,9.293e-05,2]
[328128750,1716911258840,-150.0,9.293e-05,2]
[328128751,1716911259388,-150.0,9.293e-05,2]
[328128752,1716911260142,-150.0,9.293e-05,2]
[328128753,1716911260876,-150.0,9.293e-05,2]
[328128754,1716911261396,-150.0,9.293e-05,2]
[328128755,1716911266390,-150.0,9.293e-05,2]
[328128756,1716911268704,-150.0,9.293e-05,2]
[328128757,1716911269776,-150.0,9.293e-05,2]
[328128758,1716911270295,-150.0,9.293e-05,2]
[328128759,1716911271001,-150.0,9.293e-05,2]
[328128760,1716911271584,-150.0,9.293e-05,2]
[328128761,1716911273466,-150.0,9.293e-05,2]
[328128762,1716911274094,-150.0,9.293e-05,2]
[328128763,1716911274686,-150.0,9.293e-05,2]
[328128764,1716911287381,-180.43944239,6.97e-05,2]
[328128765,1716911288748,-155.85055761,6.97e-05,2]
[328128766,1716911290098,-150.0,6.97e-05,2]
[328128767,1716911291516,-150.0,6.97e-05,2]
[328128768,1716911293799,-150.0,6.97e-05,2]
[328128769,1716911327199,-150.0,6.969e-05,2]
[328128770,1716911328691,-150.0,6.969e-05,2]
[328128771,1716911330024,-150.0,6.969e-05,2]
[328128772,1716911353517,-150.0,6.622e-05,2]
[328128773,1716911354916,-150.0,6.622e-05,2]
[328128774,1716911357394,-150.0,6.622e-05,2]
[328128775,1716911360358,-150.0,6.622e-05,2]
[328128776,1716911360456,-356.17943807,6.622e-05,2]
[328128777,1716911360483,-55.62075808,6.969e-05,2]
[328128778,1716911360510,-7521.90153139,6.969e-05,2]
[328128779,1716911360535,-113.71,6.97e-05,2]
[328128780,1716911360564,-3450.0,6.97e-05,2]
[328128781,1716911360591,-1205.85055761,6.97e-05,2]
[328128782,1716911360640,-362.3044121,6.97e-05,2]
[328128783,1716911360676,-20237.04940009,6.97e-05,2]
[328128784,1716911375152,150.0,6.97e-05,2]
[328128785,1716911375176,150.0,6.97e-05,2]
[328128786,1716911375198,150.0,6.97e-05,2]
[328128787,1716911375228,1961.48757866,6.97e-05,2]
[328128788,1716911376317,450.0,6.97e-05,2]
[328128789,1716911383503,150.0,6.97e-05,2]
[328128790,1716911383524,150.0,6.97e-05,2]
[328128791,1716911393129,56.17943807,6.622e-05,2]
[328128792,1716911393151,150.0,6.622e-05,2]
[328128793,1716911407499,150.0,6.97e-05,2]
[328128794,1716911407521,150.0,6.97e-05,2]
[328128795,1716911407542,150.0,6.97e-05,2]
[328128796,1716911407588,2056.00055761,6.97e-05,2]
[328128797,1716911411161,8972.25635644,6.97e-05,2]
[328128798,1716911414311,150.0,6.97e-05,2]
[328128799,1716911414340,150.0,6.97e-05,2]
[328128800,1716911414369,2409.1362448,6.97e-05,2]
[328128801,1716911417121,150.0,6.622e-05,2]
[328128802,1716911417148,806.57769128,6.622e-05,2]
[328128810,1716911433730,-616.59989011,9.097e-05,2]
[328128811,1716911433742,-57.20515089,9.097e-05,2]
[328128812,1716911433751,-542.25484919,9.143e-05,2]
[328128813,1716911433763,-82.14507851,9.143e-05,2]
[328128814,1716911433773,-155.0,9.144e-05,2]
[328128815,1716911433782,-325.01485492,9.144e-05,2]
[328128816,1716911433794,-164.48307221,9.144e-05,2]
[328128817,1716911433803,-119.39674877,9.145e-05,2]
[328128818,1716911433818,-9812.49092546,9.145e-05,2]
[328128819,1716911433828,-150.0,9.292e-05,2]
[328128820,1716911433838,-535.07981141,0.00010956,2]
[328128821,1716911433847,-211.19,0.00010959,2]
[328128822,1716911433857,-175.99,0.00010959,2]
[328128823,1716911433866,-879.99,0.00010959,2]
[328128824,1716911433876,-308.77,0.00011992,2]
[328128825,1716911433885,-10948.85976088,0.00012665,2]
[328128826,1716911433896,-1024.43638854,0.00012665,2]
[328128827,1716911433908,-11926.70385058,0.00012665,2]
[328128828,1716911433917,-1000.0,0.00012784,2]
[328128829,1716911433927,-3510.5234,0.000129,2]
[328128830,1716911433936,-14631.9498,0.000129,2]
[328128831,1716911433946,-161.50495398,0.000129,2]
[328128832,1716911433956,-659.5783,0.000129,2]
[328128833,1716911433966,-312.38738825,0.000129,2]
[328128834,1716911433975,-979.59790641,0.000129,2]
[328128835,1716911434174,-8187.45440457,0.000129,2]
[328128836,1716911434184,-4043.12595075,0.000129,2]
[328128837,1716911434193,-323.76282923,0.000129,2]
[328128838,1716911434203,-218.16443348,0.000129,2]
[328128839,1716911434213,-458.96932928,0.000129,2]
[328128840,1716911434222,-612.99,0.00012988,2]
[328128841,1716911434232,-7046.0499,0.00012988,2]
[328128842,1716911434241,-152.49,0.0001299,2]
[328128843,1716911434251,-152.49,0.0001299,2]
[328128844,1716911434260,-152.49,0.0001299,2]
[328128845,1716911434269,-152.49,0.0001299,2]
[328128846,1716911434278,-152.49,0.0001299,2]
[328128847,1716911434288,-152.49,0.0001299,2]
[328128848,1716911434298,-152.49,0.0001299,2]
[328128849,1716911434307,-152.49,0.0001299,2]
[328128850,1716911434316,-152.49,0.0001299,2]
[328128851,1716911434326,-152.49,0.0001299,2]
[328128852,1716911434338,-152.49,0.0001299,2]
[328128853,1716911434347,-152.49,0.0001299,2]
[328128854,1716911434357,-152.49,0.0001299,2]
[328128855,1716911434366,-152.49,0.0001299,2]
[328128856,1716911434376,-152.49,0.0001299,2]
[328128857,1716911434385,-152.49,0.0001299,2]
[328128858,1716911434395,-152.49,0.0001299,2]
[328128859,1716911434404,-152.49,0.0001299,2]
[328128860,1716911434416,-327.22308883,0.00012998,2]
[328128861,1716911434427,-155.0,0.00012998,2]
[328128862,1716911434436,-337.47918463,0.00012998,2]
[328128863,1716911434445,-1250.27456406,0.00012998,2]
[328128864,1716911434456,-505.34770832,0.00012998,2]
[328128865,1716911434466,-155.11663425,0.00012999,2]
[328128866,1716911434475,-2815.94628034,0.00012999,2]
[328128867,1716911434484,-14694.21496804,0.00013,2]
[328128868,1716911434496,-700.67700589,0.00013,2]
[328128869,1716911434508,-1054.71998718,0.00013,2]
[328128870,1716911434520,-3978.28296456,0.00013,2]
[328128871,1716911434584,-123534.67519453,0.00013,2]
[328128872,1716911434595,-5669.67267634,0.00013,2]
[328128873,1716911434606,-27999.90294995,0.00013,2]
[328128874,1716911434617,-2187.0,0.00013,2]
[328128875,1716911434634,-1209.45727771,0.00013,2]
[328128877,1716911435121,150.0,6.622e-05,2]
[328128878,1716911435144,243.42230872,6.622e-05,2]
[328128879,1716911439077,-6512.96046108,0.00013,2]
[328128880,1716911439090,-37892.7426653,0.00013,2]
[328128881,1716911439314,-6147.29057945,0.00013,2]
[328128882,1716911439326,-1222.02031038,0.00013,2]
[328128884,1716911439344,-427.20419193,0.00013,2]
[328128886,1716911439357,-544.49802541,0.00013,2]
[328128888,1716911439368,-10876.78656812,0.00013,2]
[328128891,1716911439382,-16274.61852,0.00013,2]
[328128897,1716911440135,-26980.30983695,0.00013,2]
[328128898,1716911440200,-3755.125,0.00013,2]
[328128899,1716911440313,-294.1054466,0.00013,2]
[328128900,1716911440325,-193975.9672873,0.00013,2]
[328128901,1716911440341,-3106.43771268,0.00013,2]
[328128902,1716911440373,-1735.38086328,0.00013,2]
[328128903,1716911440385,-2254.86769944,0.00013,2]
[328128904,1716911440397,-6152.06346,0.00013,2]
[328128905,1716911440409,-14615.94213722,0.00013,2]
[328128906,1716911440899,-136401.97147868,0.00013,2]
[328128909,1716911442664,-19250.01800254,0.00013,2]
[328128910,1716911442680,-762.5,0.00013,2]
[328128914,1716911442790,-537.40276,0.00013,2]
[328128915,1716911442803,-993.56644484,0.00013,2]
[328128916,1716911442816,-1554.70215338,0.00013,2]
[328128917,1716911442829,-2838.58721666,0.00013,2]
[328128918,1716911442843,-6044.14409262,0.00013,2]
[328128919,1716911442858,-6077.98951368,0.00013,2]
[328128920,1716911442883,-847659.99996049,0.00013,2]
[328128921,1716911442898,-831.48450349,0.00013,2]
[328128922,1716911442973,-2061.65173353,0.00013,2]
[328128923,1716911442987,-1617.7276877,0.00013,2]
[328128924,1716911443000,-2994.11639992,0.00013,2]
[328128925,1716911443096,-3853.3,0.00013,2]
[328128926,1716911443168,-929.21386332,0.00013,2]
[328128927,1716911443181,-679.98,0.00013,2]
[328128936,1716911445802,-3946.15275669,0.00013,2]
[328128937,1716911445814,-670.85,0.00013,2]
[328128938,1716911445926,-449209.3891614,0.00013,2]
[328128940,1716911446229,-42898.45798476,0.00013,2]
[328128941,1716911446551,45.91679405,6.622e-05,2]
[328128942,1716911446573,150.0,6.622e-05,2]
[328128943,1716911446593,93.54037139,6.622e-05,2]
[328128944,1716911447852,117.73906668,6.622e-05,2]
[328128945,1716911447874,150.0,6.622e-05,2]
[328128946,1716911447897,94.64139359,6.622e-05,2]
[328128947,1716911451160,5595.38759179,6.622e-05,2]
[328128948,1716911457131,412.35887614,6.291e-05,2]
[328128949,1716911458425,945.95035056,6.622e-05,2]
[328128950,1716911468524,289.2210401,6.622e-05,2]
[328128951,1716911491277,378.45961174,0.0001,2]
[328128952,1716911515520,35890.51951355,6.622e-05,2]
[328128955,1716912227305,155.1,9.866e-05,2]
[328128956,1716912403662,6854.4,9.866e-05,2]
[328128957,1716912425321,956.39580577,9.373e-05,2]
[328128958,1716912428032,362.38046027,9.866e-05,2]
[328128960,1716912436741,289.40104956,9.866e-05,2]
[328128961,1716912441244,720.90542255,9.373e-05,2]
[328128962,1716912443948,362.38046027,9.866e-05,2]
[328128965,1716912454649,289.40104956,9.866e-05,2]
[328128966,1716912465949,362.38046027,9.866e-05,2]
[328128967,1716912474661,289.40104956,9.866e-05,2]
[328128968,1716912483967,169.26204234,9.866e-05,2]
[328128969,1716912494653,289.40104956,9.866e-05,2]
[328128970,1716912512656,289.45716544,9.866e-05,2]
[328128971,1716912528672,311.9464776,9.866e-05,2]
[328128972,1716912533372,320.47,0.00010491,2]
[328128973,1716912565969,362.26669991,9.866e-05,2]
[328128975,1716912573016,155.00000036,9.866e-05,2]
[328128976,1716912593261,520.86951475,7.4e-05,2]
[328128977,1716912594837,155.0,9.866e-05,2]
[328128978,1716912608957,259.61831255,9.866e-05,2]
[328128987,1716912631828,-268.08947108,0.00011026,2]
[328128988,1716912631838,-209.34589343,0.00011027,2]
[328128989,1716912631847,-120.67514517,0.00011124,2]
[328128990,1716912631861,-7404.23973843,0.00011124,2]
[328128991,1716912631874,-165.56535883,0.00011127,2]
[328128992,1716912631884,-692.90574667,0.0001197,2]
[328128993,1716912631939,-535.32726433,0.0001197,2]
[328128994,1716912631949,-250.0,0.00012031,2]
[328128995,1716912631958,-150.0,0.00012274,2]
[328128996,1716912631969,-129.39057518,0.00012275,2]
[328128997,1716912631980,-584.49,0.00012275,2]
[328128998,1716912631997,-592.31,0.00012275,2]
[328128999,1716912632008,-9233.76942482,0.00012275,2]
[328129000,1716912632018,-250.0,0.00012329,2]
[328129001,1716912632028,-390.26,0.00012373,2]
[328129002,1716912632037,-1273.74072254,0.0001241,3]
[328129003,1716912632049,-726.25927746,0.0001241,3]
[328129004,1716912632058,-294.15,0.0001241,2]
[328129005,1716912632068,-800.0,0.00012462,2]
[328129006,1716912632077,-499.99,0.00012563,2]
[328129007,1716912632087,-299.99,0.00012563,2]
[328129008,1716912632096,-150.0,0.00012622,2]
[328129009,1716912632107,-320.47,0.00012755,2]
[328129010,1716912632116,-150.99,0.00012798,2]
[328129011,1716912632125,-1000.0,0.000128,2]
[328129012,1716912632136,-837.44773286,0.000128,2]
[328129013,1716912632145,-180.86971893,0.000128,2]
[328129014,1716912632155,-395.4755,0.000128,2]
[328129015,1716912632164,-2151.5455,0.000128,2]
[328129016,1716912632174,-174.3276,0.000128,2]
[328129017,1716912632185,-899.47854748,0.00012888,2]
[328129018,1716912632194,-1712.60516253,0.00012898,2]
[328129019,1716912632207,-5656.10380161,0.00012898,2]
[328129020,1716912632217,-1000.0,0.00012899,2]
[328129021,1716912632226,-881.63811576,0.00012899,2]
[328129022,1716912632236,-5007.44376077,0.000129,2]
[328129023,1716912632247,-37421.53717462,0.000129,2]
[328129024,1716912632259,-2285.28216049,0.000129,2]
[328129025,1716912637802,-5011.6,0.000129,2]
[328129026,1716912637859,-37124.41363731,0.000129,2]
[328129027,1716912637981,-425.12106461,0.000129,2]
[328129028,1716912637992,-68663.47816687,0.000129,2]
[328129029,1716912638142,-3863.4679224,0.000129,2]
[328129030,1716912638153,-5216.0,0.000129,2]
[328129031,1716912638165,-284.2,0.000129,2]
[328129032,1716912638178,-395.86421293,0.000129,2]
[328129033,1716912638187,-1600.3617319,0.000129,2]
[328129034,1716912638200,-520.09961485,0.000129,2]
[328129035,1716912638212,-806.59504566,0.000129,2]
[328129039,1716912640410,-2263.88315522,0.000129,2]
[328129040,1716912640473,-3776.77495237,0.000129,2]
[328129041,1716912640483,-500.0,0.000129,2]
[328129042,1716912640492,-329.28733495,0.000129,2]
[328129043,1716912640504,-884.29427894,0.000129,2]
[328129044,1716912640515,-345.1849985,0.000129,2]
[328129045,1716912640527,-1476.6540648,0.000129,2]
[328129046,1716912640540,-813.25512549,0.000129,2]
[328129047,1716912640551,-261.89349732,0.000129,2]
[328129048,1716912640561,-316.9915027,0.000129,2]
[328129049,1716912641199,-483.17616359,0.000129,2]
[328129050,1716912641209,-161.50495397,0.000129,2]
[328129051,1716912641218,-197.87473694,0.000129,2]
[328129052,1716912641227,-325.05291237,0.000129,2]
[328129053,1716912641237,-218.16443348,0.000129,2]
[328129054,1716912641246,-305.97955286,0.000129,2]
[328129055,1716912641255,-150.58,0.0001299,2]
[328129056,1716912641264,-150.58,0.0001299,2]
[328129057,1716912641275,-150.58,0.0001299,2]
[328129058,1716912641285,-266.22124095,0.00012998,2]
[328129059,1716912641295,-158.52697933,0.00012998,2]
[328129060,1716912641305,-226.12997292,0.00012999,2]
[328129061,1716912641316,-254.06455582,0.00012999,2]
[328129062,1716912641326,-489.24399676,0.00012999,2]
[328129063,1716912641335,-46671.01,0.00012999,2]
[328129064,1716912641345,-26198.31050101,0.00013,2]
[328129065,1716912641356,-3928.67887252,0.00013,2]
[328129066,1716912641368,-2222.0873454,0.00013,2]
[328129067,1716912641382,-21786.0,0.00013,2]
[328129068,1716912641402,-387592.66283485,0.00013,2]
[328129069,1716912641414,-41087.31332761,0.00013,2]
[328129107,1716912642918,-5452.73269159,0.00013,2]
[328129109,1716912642930,-1392.12514054,0.00013,2]
[328129110,1716912642941,-12621.69186423,0.00013,2]
[328129111,1716912642954,-5327.34016204,0.00013,2]
[328129112,1716912642975,-2760424.79155572,0.00013,2]
[328129113,1716912643035,-7706.15999992,0.00013,2]
[328129114,1716912643047,-34347.60486604,0.00013,2]
[328129115,1716912643260,-49249.52977481,0.00013,2]
[328129116,1716912643318,-25561.91,0.00013,2]
[328129117,1716912643330,-383.48999995,0.00013,2]
[328129119,1716912643667,38807.24550694,9.866e-05,2]
[328129121,1716912645866,-3690.56082276,0.00013,2]
[328129125,1716912645979,-1714.66581482,0.00013,2]
[328129126,1716912646200,-2168.252025,0.00013,2]
[328129128,1716912655043,488.55,0.00010959,2]
[328129132,1716912748834,157.19,9.924e-05,2]
[328129134,1716913027848,323.42,9.674e-05,2]
[328129136,1716913202791,150.0,9.674e-05,2]
[328129137,1716913202984,150.0,9.674e-05,2]
[328129138,1716913203184,150.0,9.674e-05,2]
[328129139,1716913203370,150.0,9.674e-05,2]
[328129140,1716913203572,150.0,9.674e-05,2]
[328129141,1716913203787,150.0,9.674e-05,2]
[328129142,1716913203976,150.0,9.674e-05,2]
[328129143,1716913204148,150.0,9.674e-05,2]
[328129144,1716913204334,150.0,9.674e-05,2]
[328129145,1716913204541,150.0,9.674e-05,2]
[328129146,1716913204736,150.0,9.674e-05,2]
[328129147,1716913204936,150.0,9.674e-05,2]
[328129148,1716913205110,150.0,9.674e-05,2]
[328129149,1716913205305,150.0,9.674e-05,2]
[328129150,1716913205731,150.0,9.674e-05,2]
[328129151,1716913205770,150.0,9.674e-05,2]
[328129152,1716913205960,150.0,9.674e-05,2]
[328129153,1716913206150,150.0,9.674e-05,2]
[328129154,1716913206339,150.0,9.674e-05,2]
[328129155,1716913206584,150.0,9.674e-05,2]
[328129156,1716913206784,237.82324314,9.674e-05,2]
[328129157,1716913396376,1978.438858,0.00010988,2]
[328129159,1716913513327,307.24,9.176e-05,2]
[328129160,1716913629674,436.08,0.00010876,2]
[328129200,1716913667132,250.0,0.0001083,2]
[328129201,1716913674168,150.0,0.00010959,2]
[328129204,1716913753907,250.0,0.00010834,2]
[328129239,1716913832082,-364.71150736,0.0001101,2]
[328129241,1716913832092,-272.98849264,0.0001101,2]
[328129242,1716913832107,-4161.91155216,0.0001101,2]
[328129243,1716913832117,-155.0,0.00011011,2]
[328129244,1716913832126,-155.0,0.00011011,2]
[328129245,1716913832135,-268.08947108,0.00011011,2]
[328129246,1716913832146,-784.71344393,0.00011012,2]
[328129247,1716913832156,-155.0,0.00011013,2]
[328129248,1716913832165,-322.18540633,0.00011013,2]
[328129249,1716913832175,-7526.23404168,0.00011013,2]
[328129250,1716913832191,-541.55577053,0.00011078,2]
[328129251,1716913832200,-150.0,0.00011079,2]
[328129252,1716913832209,-402.95442392,0.00011079,2]
[328129253,1716913832218,-4603.64649432,0.0001108,2]
[328129254,1716913832230,-19296.35350568,0.0001108,2]
[328129255,1716913832240,-1216.28,0.00011091,2]
[328129256,1716913832250,-1000.0,0.00011094,2]
[328129257,1716913832259,-287.68,0.00011094,2]
[328129258,1716913832269,-157.63,0.00011164,2]
[328129259,1716913832279,-499.99,0.00011164,2]
[328129260,1716913832288,-105.63045259,0.00011181,2]
[328129261,1716913832299,-470.27954741,0.00011181,2]
[328129262,1716913832309,-596.01493448,0.00011215,2]
[328129263,1716913832321,-6300.85506552,0.00011215,2]
[328129264,1716913832330,-157.63,0.00011222,2]
[328129265,1716913832340,-174.64,0.00011274,2]
[328129266,1716913832349,-157.63,0.0001128,2]
[328129267,1716913832358,-59.22580401,0.00011338,2]
[328129268,1716913832370,-98.40419599,0.00011338,2]
[328129269,1716913832379,-157.63,0.00011396,2]
[328129270,1716913832388,-23.66237677,0.0001144,2]
[328129271,1716913832400,-283.57762323,0.0001144,2]
[328129272,1716913832409,-157.63,0.00011454,2]
[328129273,1716913832419,-657.63007707,0.00011468,2]
[328129274,1716913832432,-818.82444517,0.00011468,2]
[328129275,1716913832443,-555.59877824,0.00011468,2]
[328129276,1716913832454,-387.0989336,0.00011468,2]
[328129277,1716913832469,-5456.92945812,0.00011468,2]
[328129278,1716913832481,-350.0,0.00011468,2]
[328129279,1716913832492,-6994.5239078,0.00011468,2]
[328129280,1716913832502,-157.63,0.00011512,2]
[328129281,1716913832512,-602.09796917,0.00011568,2]
[328129282,1716913832521,-157.63,0.00011571,2]
[328129283,1716913832530,-157.63,0.00011629,2]
[328129285,1716913832539,-157.63,0.00011687,2]
[328129287,1716913832548,-177.55,0.00011697,2]
[328129289,1716913832557,-750.94633531,0.00011698,2]
[328129291,1716913832566,-1245.97765168,0.00011708,2]
[328129292,1716913832575,-9702.68567581,0.00011708,2]
[328129293,1716913832584,-157.63,0.00011745,2]
[328129295,1716913832594,-210.0,0.00012187,2]
[328129297,1716913832603,-1000.0,0.00012481,2]
[328129299,1716913832612,-539.6265715,0.00012609,2]
[328129300,1716913832621,-4881.1369,0.000127,2]
[328129301,1716913832631,-1000.0,0.000127,2]
[328129302,1716913832640,-323.94396027,0.00012702,2]
[328129303,1716913832649,-179.78792455,0.0001277,2]
[328129304,1716913832658,-1002.80185968,0.00012795,2]
[328129305,1716913832668,-3930.05000828,0.00012796,2]
[328129306,1716913832679,-155.0,0.00012796,2]
[328129307,1716913832688,-155.0,0.00012796,2]
[328129308,1716913832698,-245.21322238,0.00012796,2]
[328129309,1716913832708,-192.91895916,0.00012796,2]
[328129310,1716913832717,-155.0,0.00012796,2]
[328129311,1716913832727,-201.6612582,0.00012796,2]
[328129312,1716913832737,-1370.1766084,0.00012797,2]
[328129313,1716913832747,-155.0,0.00012797,2]
[328129314,1716913832757,-1381.93423711,0.00012798,2]
[328129315,1716913832767,-10608.13118641,0.00012798,2]
[328129316,1716913832776,-3092.38465923,0.00012798,2]
[328129317,1716913832785,-319.39260741,0.00012798,2]
[328129318,1716913832794,-275.76405456,0.00012798,2]
[328129319,1716913832804,-2188.02281065,0.00012798,2]
[328129320,1716913832813,-837.07031889,0.00012798,2]
[328129321,1716913832822,-306.53561288,0.00012798,2]
[328129322,1716913832832,-410.08555038,0.00012799,2]
[328129323,1716913832841,-850.11730473,0.00012799,2]
[328129324,1716913832850,-4280.3749567,0.00012799,2]
[328129325,1716913832861,-67169.8552,0.000128,2]
[328129326,1716913832870,-245000.0,0.000128,2]
[328129327,1716913832880,-179.78792452,0.00012803,2]
[328129328,1716913832889,-179.78792452,0.00012835,2]
[328129329,1716913832899,-179.78792452,0.00012868,2]
[328129330,1716913832908,-33027.76802467,0.0001287,2]
[328129331,1716913832917,-1075.4154,0.0001287,2]
[328129332,1716913832926,-6665.1343677,0.00012898,2]
[328129333,1716913832937,-844.91733302,0.00012899,2]
[328129334,1716913832946,-946.14141461,0.000129,2]
[328129335,1716913832955,-8647.3827826,0.000129,2]
[328129336,1716913832965,-299.07538621,0.000129,2]
[328129337,1716913832974,-2863.28831113,0.000129,2]
[328129338,1716913833016,-3737.44858887,0.000129,2]
[328129339,1716913833025,-1000.0,0.000129,2]
[328129340,1716913833035,-1270.58824832,0.000129,2]
[328129341,1716913833044,-172.31197726,0.000129,2]
[328129342,1716913833053,-187.21036864,0.000129,2]
[328129343,1716913833063,-179.78792452,0.000129,2]
[328129344,1716913833072,-461.78697446,0.000129,2]